Cogmind - Beta 16.1 @@@ ROGUE MODE // 2026.02.24 @ 22:05:13 Player: SelfCookedBird Result: Destroyed by D-53 Grenadier with Mini Grenade Launcher Performance ------------- Evolutions (2) 1000 Regions Visited (4) 800 Robots Destroyed (7) 35 Value Destroyed (232) 232 Prototype IDs (1) 20 Alien Tech Used (0) 0 Bonus (294) 294 TOTAL SCORE: 2381 Bonus ------- Follower Combat Kills 294 Cogmind --------- Core Integrity 0/550 Matter 297/300 Energy 100/100 System Corruption 0% Temperature Cool (0) Movement Treading (145) Location -8/Storage Parts ------- > --- POWER (1) -------- (None) > --- PROPULSION (4) --- Advanced Treads > --- UTILITY (4) ------ Improved Signal Interpreter Salvage Targeting Computer Target Analyzer System Shield > --- WEAPON (2) ------- (None) > --- INVENTORY (5) ---- Deuterium Engine Light Deuterium Engine Compact Wheel Small Battery (100) Target Analyzer Peak State ------------ > --- POWER ------------ Deuterium Engine > --- PROPULSION ------- Aerolev Unit Aerolev Unit Aerolev Unit Aerolev Unit > --- UTILITY ---------- Small Storage Unit Weight Redist. System Improved Sensor Array Core Shielding > --- WEAPON ----------- Rocket Launcher Datajack > --- INVENTORY -------- Deuterium Engine Light Deuterium Engine Light Deuterium Engine Compact Wheel Small Battery Signal Interpreter Welding Torch [Rating: 30] Favorites ----------- Power Deuterium Engine Engine Deuterium Engine Propulsion Advanced Treads Treads Advanced Treads Leg Aluminum Leg Hover Unit Aerolev Unit Flight Unit Flight Unit Utility Improved Signal Interpreter Device Weight Redist. System Storage Small Storage Unit Processor Improved Signal Interpreter Hackware System Shield Protection Core Shielding Weapon Light Assault Rifle Ballistic Gun Light Assault Rifle Launcher Rocket Launcher Special Melee Weapon Datajack Build | -11 -10 -9 -8 -8 ------- Run | Yrd Mat Mat Mat Sto Slots Evolved 4 | . . 2 2 . Power . | . . . . . Propulsion 2 | . . 2 . . Utility 2 | . . . 2 . Weapon . | . . . . . Parts Attached 34 | 5 3 7 3 16 Power 6 | 1 1 1 1 2 Engine 6 | 1 1 1 1 2 Core . | . . . . . Reactor . | . . . . . Propulsion 12 | 2 . 4 . 6 Treads 4 | . . . . 4 Leg 2 | 2 . . . . Wheel . | . . . . . Hover 4 | . . 4 . . Flight 2 | . . . . 2 Utility 10 | 1 1 1 1 6 Device 2 | . . . 1 1 Storage 2 | 1 1 . . . Processor 4 | . . . . 4 Hackware 1 | . . . . 1 Protection 1 | . . 1 . . Artifact . | . . . . . Weapon 6 | 1 1 1 1 2 Energy Gun . | . . . . . Energy Cannon . | . . . . . Ballistic Gun 4 | 1 1 . . 2 Ballistic Cannon . | . . . . . Launcher 1 | . . . 1 . Special Weapon . | . . . . . Impact Weapon . | . . . . . Slashing Weapon . | . . . . . Piercing Weapon . | . . . . . Special Melee Weapon 1 | . . 1 . . Unidentified Prototypes 1 | . . 1 . . Parts Lost 12 | . . . . 12 Power 3 | . . . . 3 Propulsion 6 | . . . . 6 Utility . | . . . . . Weapon 3 | . . . . 3 Highest Loss Streak 5 | . . . . 5 To Critical Strikes . | . . . . . Average Backups 4 | 1 3 4 5 5 Power 1 | . 1 1 2 2 Propulsion . | . 1 1 1 1 Utility 1 | . 1 2 2 1 Weapon . | . . . . . Tool/Special . | . . . . . Unused Backups 5 | . . . . 5 Power 2 | . . . . 2 Propulsion 1 | . . . . 1 Utility 1 | . . . . 1 Weapon . | . . . . . Tool/Special 1 | . . . . 1 Average Slot Usage (%) 72 | . 68 81 88 70 Engine 9 | . 14 11 9 8 Treads 13 | . . . . 22 Leg 8 | . 28 14 . . Hover 5 | . . 15 36 2 Device 2 | . . . 7 3 Storage 4 | . 8 11 9 1 Processor 6 | . . . . 10 Hackware 3 | . . . . 5 Protection 2 | . . 7 9 1 Ballistic Gun 12 | . 17 15 3 11 Special Melee Weapon 2 | . . 6 9 1 Peak Build Rating 30 | 5 6 23 27 30 Average Rating 15 | 3 4 13 26 19 On Entrance 12 | . 5 6 23 27 Avg Prop Armor Cover (%) . | . . . . . Naked Turns 9 | . . . . 9 Heaviest Build 21 | 12 12 13 20 21 Greatest Support 92 | 20 20 32 38 92 Greatest Overweight (x) 4 | 3 . . . 4 Average Overweight (x) . | . . . . . Largest Inventory Capacity 8 | 8 8 8 8 8 Average Capacity 5 | 7 5 5 8 5 Most Carried 7 | 3 5 5 7 7 Average Carried 4 | 2 3 4 6 5 Final Capacity 8 | 8 5 8 8 5 Final Carried 7 | 3 4 5 7 5 Class Distribution -------------------- 53% | Mutant 46% | Commander-Mutant Dominant Class ---------------- Mutant | -10/Materials Mutant | -9/Materials Mutant | -8/Materials Commander-Mutant | -8/Storage Resources | -11 -10 -9 -8 -8 ----------- Run | Yrd Mat Mat Mat Sto Matter Collected 546 | 197 125 41 73 110 Remotely . | . . . . . Salvage Created 244 | . 93 41 . 110 Parts 10 | . 5 1 . 4 Haulers Intercepted . | . . . . . Recyclers Shooed . | . . . . . Parts Field Recycled . | . . . . . Retrieved Matter . | . . . . . Parts Self-Destructed . | . . . . . Prevented . | . . . . . Parts Restored . | . . . . . Kills | -11 -10 -9 -8 -8 ------- Run | Yrd Mat Mat Mat Sto Combat Hostiles Destroyed 7 | . 2 1 . 4 Melee 1 | . . . . 1 Guns 6 | . 2 1 . 3 Classes Destroyed 4 | . 1 . . 3 Swarmer 1 | . . . . 1 Grunt 3 | . 2 1 . . Brawler 2 | . . . . 2 Protector 1 | . . . . 1 Best Kill Streak 3 | . 1 1 . 3 Combat Bots Only 3 | . 1 1 . 3 Max Kills in Single Turn 2 | . 1 1 . 2 Gunslinging 1 | . . . . 1 Exploded . | . . . . . Melee 1 | . . . . 1 Uniques/NPCs Destroyed . | . . . . . Combat | -11 -10 -9 -8 -8 -------- Run | Yrd Mat Mat Mat Sto Hostile Shots Fired 182 | . 11 3 2 166 Missed 58 | . 3 1 . 54 Hits 124 | . 8 2 2 112 Melee 2 | . . . . 2 Projectile 122 | . 8 2 2 110 AOE 11 | . . . . 11 Critical Strikes 5 | . 1 . . 4 Actively Blocked 1 | . . . . 1 Damage Taken 2051 | . 109 21 16 1905 Core 603 | . 41 . . 562 Absorbed by Shields . | . . . . . Redirected to Shielding 21 | . . . . 21 Core Remaining (%) 94 | 100 83 100 . . Volleys Fired 21 | . 8 4 . 9 Largest 2 | . 2 1 . 2 Hottest 43 | . 40 20 . 43 Shots Fired 37 | . 16 4 . 17 Gun 36 | . 16 4 . 16 Cannon . | . . . . . Launcher 1 | . . . . 1 Special . | . . . . . Kinetic 36 | . 16 4 . 16 Thermal . | . . . . . Explosive 1 | . . . . 1 Electromagnetic . | . . . . . Robot Hit Streak 8 | . 4 5 . 8 Robot Miss Streak 2 | . 2 1 . 2 Penetration Max . | . . . . . Secondary Targets 1 | . . . . 1 Max Gunslinging Chain 1 | . . . . 1 Shots Hit Robots 27 | . 9 3 . 15 Core Hits 21 | . 6 2 . 13 Critical Kills . | . . . . . Critical Parts Destroyed 3 | . . . . 3 Critical Strikes 3 | . . . . 3 Destroy 3 | . . . . 3 Melee Attacks 4 | . . . . 4 Impact . | . . . . . Slashing . | . . . . . Piercing . | . . . . . Sneak Attacks 1 | . . . . 1 Combat Hostiles . | . . . . . Follow-up Attacks . | . . . . . Damage Inflicted 377 | . 94 22 . 261 Guns 273 | . 94 22 . 157 Cannons . | . . . . . Explosions 68 | . . . . 68 Melee . | . . . . . Ramming 36 | . . . . 36 Kinetic 273 | . 94 22 . 157 Thermal . | . . . . . Explosive 68 | . . . . 68 Electromagnetic . | . . . . . Impact . | . . . . . Slashing . | . . . . . Piercing . | . . . . . Highest Corruption . | . . . . . Average Corruption . | . . . . . Corruption Purged . | . . . . . Corruption Blocked . | . . . . . Overload Shots . | . . . . . Overflow Damage . | . . . . . Projectiles . | . . . . . Explosions . | . . . . . Melee . | . . . . . Knockbacks . | . . . . . Impact . | . . . . . Kinetic . | . . . . . Secondary . | . . . . . Self-Inflicted Damage 44 | . . . . 44 Shots 1 | . . . . 1 Rammed 12 | . . . . 12 Targets Rammed 12 | . . . . 12 Kicked . | . . . . . Crushed . | . . . . . Highest Temperature 27 | . 27 10 . 10 Average Temperature 8 | . 13 4 . 4 Received Heat Transfer 540 | . 78 12 . 450 Siege Activations . | . . . . . Martial Activations . | . . . . . Shielding Activations . | . . . . . Robots Disrupted . | . . . . . Combat Hostiles . | . . . . . Robots Corrupted . | . . . . . Combat Hostiles . | . . . . . Parts Fried . | . . . . . Impact Corruptions . | . . . . . Robots Melted . | . . . . . Combat Hostiles . | . . . . . Parts Melted . | . . . . . Heat Transferred . | . . . . . Parts Sabotaged . | . . . . . Parts Stolen . | . . . . . Parts Stripped . | . . . . . Power Chain Reactions . | . . . . . Alert | -11 -10 -9 -8 -8 ------- Run | Yrd Mat Mat Mat Sto Maximum Alert Level 1 | . . . . 1 Low Security (%) 82 | 100 100 100 100 69 Level 1 17 | . . . . 30 Level 2 . | . . . . . Level 3 . | . . . . . Level 4 . | . . . . . Level 5 . | . . . . . High Security . | . . . . . Max Security . | . . . . . Peak Influence 256 | . 60 55 22 256 Initial 22 | . . 16 22 . Average 93 | . 14 11 9 156 Influence Increases 803 | . 95 72 . 636 Destroy 0b10 Robot/C 320 | . 40 20 . 260 Destroy 0b10 Robot/NC 10 | . . . . 10 Destroy Leader 62 | . 10 . . 52 Allied During Kill 136 | . . . . 136 Successful Hack 7 | . . 7 . . Disable Machine 15 | . . . . 15 Destroy Structure 13 | . . . . 13 Partial Spotted 45 | . . 30 . 15 Lose Combat Pursuer 195 | . 45 15 . 135 Influence Decreases 791 | . 55 57 55 624 Entered New Map 57 | . . 24 33 . Time Decay 434 | . 55 33 22 324 Lost Part 120 | . . . . 120 Lost Ally 180 | . . . . 180 Squads Dispatched 13 | . 1 4 . 8 Investigation 3 | . 1 1 . 1 Extermination . | . . . . . Reinforcement 4 | . . 3 . 1 Assault 2 | . . . . 2 Garrison 4 | . . . . 4 Intercept . | . . . . . Searches Triggered . | . . . . . Construction Impeded . | . . . . . Haulers Reinforced . | . . . . . Active Scanning Responses . | . . . . . Cargo Convoy Interrupts . | . . . . . Stealth | -11 -10 -9 -8 -8 --------- Run | Yrd Mat Mat Mat Sto Distress Signals 2 | . 1 1 . . Communications Jammed . | . . . . . Distress Signals . | . . . . . Times Spotted 54 | . 6 6 4 38 Peak Tracking Total 12 | . 2 4 4 12 Tactical Retreats 8 | . 2 1 . 5 Traps | -11 -10 -9 -8 -8 ------- Run | Yrd Mat Mat Mat Sto Traps Triggered 5 | . 1 . . 4 Indirectly . | . . . . . Trap Hack Attempts . | . . . . . Triggered . | . . . . . Disarmed . | . . . . . Reprogrammed . | . . . . . Reused . | . . . . . Traps Extracted . | . . . . . Installed . | . . . . . Triggered . | . . . . . Machines | -11 -10 -9 -8 -8 ---------- Run | Yrd Mat Mat Mat Sto Machines Disabled 1 | . . . . 1 Max in Single Turn 1 | . . . . 1 Machines Repaired . | . . . . . Machines Dismantled . | . . . . . Machines Sabotaged . | . . . . . Overloaded Fab Kills . | . . . . . Hacking | -11 -10 -9 -8 -8 --------- Run | Yrd Mat Mat Mat Sto Machines Accessed 4 | . . 1 1 2 Terminals 3 | . . 1 . 2 Fabricators . | . . . . . Repair Stations . | . . . . . Recycling Units 1 | . . . 1 . Scanalyzers . | . . . . . Garrison Access . | . . . . . Total Hacks 11 | . . 3 1 7 Successful 6 | . . 1 1 4 Failed 5 | . . 2 . 3 Catastrophic 1 | . . . . 1 Database Lockouts . | . . . . . Manual . | . . . . . Terminals 10 | . . 3 . 7 Fabricators . | . . . . . Repair Stations . | . . . . . Recycling Units 1 | . . . 1 . Scanalyzers . | . . . . . Garrison Access . | . . . . . Terminal Hacks 5 | . . 1 . 4 Record 1 | . . . . 1 Alert Level 1 | . . . . 1 Investigation Status 1 | . . . . 1 Recall Investigation 1 | . . 1 . . Zone Layout 1 | . . . . 1 Fabricator Hacks . | . . . . . Repair Station Hacks . | . . . . . Recycling Unit Hacks 1 | . . . 1 . Report Inventory 1 | . . . 1 . Scanalyzer . | . . . . . Garrison Access Hacks . | . . . . . Unauthorized Hacks . | . . . . . Terminals . | . . . . . Fabricators . | . . . . . Repair Stations . | . . . . . Recycling Units . | . . . . . Scanalyzers . | . . . . . Garrison Access . | . . . . . Data Cores Recovered . | . . . . . Used . | . . . . . Hacking Detections 3 | . . 1 . 2 Full Trace Events 2 | . . 1 . 1 Feedback Events . | . . . . . Feedback Blocked . | . . . . . Robot Schematics Acquired . | . . . . . Robots Built . | . . . . . Authchips . | . . . . . Time . | . . . . . Total Robot Build Rating . | . . . . . Part Schematics Acquired . | . . . . . Parts Built . | . . . . . Authchips . | . . . . . Time . | . . . . . Total Part Build Rating . | . . . . . Part Studies Acquired . | . . . . . Parts Repaired . | . . . . . Time . | . . . . . Parts Recycled . | . . . . . Recycled Matter . | . . . . . Retrieved Matter . | . . . . . Retrieved Components . | . . . . . Parts Scanalyzed . | . . . . . Part Schematics Acquired . | . . . . . Parts Damaged . | . . . . . Bothacking | -11 -10 -9 -8 -8 ------------ Run | Yrd Mat Mat Mat Sto Used RIF Installer . | . . . . . Robots Hacked 3 | . . . . 3 Non-combat 1 | . . . . 1 Combat 2 | . . . . 2 Robot Hacks Applied 3 | . . . . 3 parse_system 2 | . . . . 2 no_distress 1 | . . . . 1 Relay Couplers Released . | . . . . . Fabnet Peak Effective % . | . . . . . Robots Rewired . | . . . . . Allies Hacked . | . . . . . Hacks Repelled . | . . . . . Allies | -11 -10 -9 -8 -8 -------- Run | Yrd Mat Mat Mat Sto Total Allies 12 | . . . . 12 Largest Group 10 | . . . . 10 Highest-Rated Group 173 | . . . . 173 Highest-Rated Ally 31 | . . . . 31 Total Orders 6 | . . . . 6 GUARD 5 | . . . . 5 AID 1 | . . . . 1 Ally Attacks 98 | . . . . 98 Total Damage 1258 | . . . . 1258 Kills 13 | . . . . 13 Allies Corrupted . | . . . . . Allies Melted . | . . . . . Intel | -11 -10 -9 -8 -8 ------- Run | Yrd Mat Mat Mat Sto Active Infowar (turns) 13 | . . . . 13 Sensors 13 | . . . . 13 Robot Analysis Total . | . . . . . Derelict Logs Recovered . | . . . . . Drone Launches . | . . . . . Drone Recoveries . | . . . . . Exploration | -11 -10 -9 -8 -8 ------------- Run | Yrd Mat Mat Mat Sto Turns Passed 1316 | 73 284 139 73 747 Spaces Moved 1157 | 44 208 170 152 583 Core 123 | 11 . . . 112 Treads 339 | . . . . 339 Legs 305 | 33 208 64 . . Wheels . | . . . . . Hover 383 | . . 106 152 125 Flight 7 | . . . . 7 Fastest Speed 37 | 50 120 38 38 37 Average Speed 99 | 143 120 69 38 113 Slowest Speed 250 | 200 120 120 38 250 Overloaded Moves . | . . . . . Propulsion Burnouts . | . . . . . Robots Hopped . | . . . . . Potential Cave-ins . | . . . . . Cave-ins Triggered . | . . . . . Exploration Rate (%) 24 | 3 36 20 15 48 Regions Visited 4 Branch Regions 1 Pre-discovered Areas . | . . . . . Known Exits Taken . | . . . . . Unknown Exits Taken 4 | 1 1 1 1 . Scrap Searched . | . . . . . Spaces Dug . | . . . . . Terrain Destroyed 16 | . . . . 16 Melee . | . . . . . Projectile . | . . . . . AOE 16 | . . . . 16 Terrain Rammed . | . . . . . Walls Destroyed . | . . . . . Machines Disabled . | . . . . . Actions | -11 -10 -9 -8 -8 --------- Run | Yrd Mat Mat Mat Sto Total 1271 | 51 228 183 165 644 Wait 30 | . 6 . 8 16 Move 1153 | 43 207 169 151 583 Hop . | . . . . . Pick Up 9 | 3 1 1 2 2 Fast Attach 24 | 5 1 3 1 14 Attach 3 | . 2 . . 1 Detach 2 | . 2 . . . Swap 10 | . 1 5 2 2 Drop 3 | . . 1 1 1 Fire 21 | . 8 4 . 9 Melee 4 | . . . . 4 Ram 10 | . . . . 10 Kick . | . . . . . Crush 2 | . . . . 2 Escape Stasis . | . . . . . Rewire . | . . . . . Trap . | . . . . . Miscellaneous . | . . . . . Route ------- -11/Scrapyard -10/Materials -9/Materials -8/Materials -8/Storage History --------- Turn | Location | Event 25 | -11/Scrapyard | Discovered new exit (range 15) 74 | -11/Scrapyard | Entered Materials 303 | -10/Materials | Build established: Mutant 353 | -10/Materials | Discovered new exit (range 5) 358 | -10/Materials | Entered another Materials area 358 | -9/Materials | Evolved 2 slots: Propulsion x2 492 | -9/Materials | Discovered new exit (range 13) 497 | -9/Materials | Entered another Materials area 497 | -8/Materials | Evolved 2 slots: Utility x2 568 | -8/Materials | Discovered new exit (range 7) 570 | -8/Materials | Entered Storage 590 | -8/Storage | Garrison activated, responded to threat 693 | -8/Storage | Released all parts (3) 718 | -8/Storage | Lost 3 parts (1p1n1w) 722 | -8/Storage | Core integrity fell below 50% 732 | -8/Storage | Assisted by bots powering up and referring to "LRC-V3" 751 | -8/Storage | Core integrity fell below 20% 755 | -8/Storage | Lost 3 parts (1p2n) 993 | -8/Storage | Build established: Commander-Mutant 1206 | -8/Storage | Met a pair of Derelict thieves 1292 | -8/Storage | Garrison activated, responded to threat 1317 | -8/Storage | Destroyed by D-53 Grenadier with Mini Grenade Launcher Last Messages --------------- X5-J0E(g) destroyed. G-50 Soldier destroyed. R-06 Scavenger collects Aluminum Leg. The unstable cave ceiling collapses. R-06 Scavenger collects Imp. Ion Engine. G-50 Soldier suffers critical hit (Destroy). Destroyed Hvy. Laser. R-06 Scavenger collects Prototype Energy Gun. I-25 Savior destroyed. Switching to secondary target: B-36 Bruiser. B-36 Bruiser destroyed. M-28 Smith destroyed. Adv. Treads destroyed. D-53 Grenadier suffers critical hit (Destroy). Destroyed Lgt. Deuterium Engine. G-47 Trooper destroyed. Hvy. Assault Rifle destroyed. Lgt. Assault Rifle destroyed. D-53 Grenadier destroyed. Deuterium Engine destroyed. Map ----- +----------------------------------------------------+ | ???? ??????????????# # ! #????###### | | ???? ??????????????# ##+#####?????????? | | ???????????????###### #?????????????? | | ???????????????# ## #?????????????? | | ???????????????# T =^ #?????????????? | | ???????????????# #####/#####?????????? | | ???????????????##[### #?????????? | | ????#???????????#%#?# """"" #?????????? | | ##### ###########=### """"" !#?????????? | | # """""* ###???????? | | % ==/ %[""#???????? | | !%# """"" Y"#???????? | | ?T#################*# """"" ""#???????? | | ?????????## # # """"" ###???????? | | ?????????# # /!# *%[= #?????????? | | ?????????# # # # #########??######? | | ?????????# # #%###?# #### ! !## | | ?????????# # # #???# ##T# !! ## | | ?????????### # #???# + " ## | | ???????????##" "### #???# # !## | | ????????????#"G"#?#%#?### # " ## | | ????????????#"""#?#"### ## # #! !## | | ???????????########/## a ######## | | ???????????# % r ! ######### | | ???????????# Y #??????? | | ???????????# @ #??????? | | ???????????# ! #??????? | | ???????????# d ##??????? | | ???????????# d #???????? | | ???????????############ ##???????? | | ??????????????????????## # ##????????? | | ???????????????????????### T#????????? | | ?????????????????????????# ##########? | | ?????????????????????????# ##########? | | ?????????????????????????# # "]]]]##? | | ?????????????????????????# + ##? | | ?????????????????????????# # "]]]]##? | | ?????????????????????????# ##T#######? | | ?????????????????????????# ##########? | | ?????????????????????????# #?????????? | | ?????????????????????????# #?????????? | | ?????????????????????????#####?????????? | | ???????????????????????????????????????? | | ???????????????????????????????????????? | | ???????????????????????????????????????? | | ???????????????????????????????????????? | | ???????????????????????????????????????? | | ???????????????????????????????????????? | | | | | +----------------------------------------------------+ Best States ------------- Heat Dissipation 31 Energy Generation 14 Energy Capacity 275 Matter Stores 300 Matter Capacity 300 Sight Range 16 Robot Scan Range 15 Terrain Scan Density 10 Additional Mass Support 6 Core Shielding 20 Evasion (%) 62 Target Analysis 5 Recoil Reduction 4 Salvage Targeting 1 Defensive Hacking 10 Item Schematics ----------------- None Robot Schematics ------------------ None Fabricated ------------ Nothing Repaired ---------- Nothing Studied --------- None Alien Tech Used ----------------- None Achievements -------------- That Tickles The More The Merrier Troublemaker Challenges ------------ None Game ------ Seed ActiveAdvancedPlatform Manual? 0 Play Time 00:26:23 Cumulative 1.1 hours Start 2026.02.24 @ 21:37:17 End 2026.02.24 @ 22:05:13 Sessions 1 Manual Loads 0 Difficulty Rogue Special Mode None Game No. 4 Rogue 4 Adventurer 0 Explorer 0 Win Type - Total 0 Types 0/0/0/0/0/0/0/0/0/0 Lore% 0 Gallery% 4 Achievement% 4 Wizard Run 0 Options --------- Layout 1 ASCII 0 Keyboard 1 Movement Arrows Keybinds 0 Fullscreen 1 Font 32/SmallcapsGlow Map View 77x35 Zoom Use 0% Tactical HUD 0 Map Filters NONE Filters NONE Steam 0 RUN: 55951346-c827-4e62-acfb-6219a9c20940